[Event "NJSK 2024 AmBm"]
[Site "Groningen, Netherlands"]
[Date "2024.04.30"]
[Round "4.5"]
[White "Damen, Josephine"]
[Black "Van Apeldoorn, Vera"]
[Result "1-0"]
[TimeControl "90min/40moves + 30min + 30sec/move"]
[WhiteElo "1890"]
[BlackElo "1601"]

1. e4 {[%clk 01:30:57]} {[%emt 00:00:02]} e5 {[%clk 01:30:51]} {[%emt
00:00:10]} 2. Nf3 {[%clk 01:31:23]} {[%emt 00:00:04]} Nc6 {[%clk 01:31:13]}
{[%emt 00:00:08]} 3. Bc4 {[%clk 01:31:46]} {[%emt 00:00:07]} Nf6 {[%clk
01:31:11]} {[%emt 00:00:31]} 4. d4 {[%clk 01:32:10]} {[%emt 00:00:06]} exd4
{[%clk 01:31:00]} {[%emt 00:00:41]} 5. e5 {[%clk 01:32:34]} {[%emt 00:00:07]}
d5 {[%clk 01:30:21]} {[%emt 00:01:09]} 6. Bb5 {[%clk 01:32:56]} {[%emt
00:00:08]} Ne4 {[%clk 01:30:17]} {[%emt 00:00:34]} 7. Nxd4 {[%clk 01:33:11]}
{[%emt 00:00:14]} Bd7 {[%clk 01:30:12]} {[%emt 00:00:36]} 8. Bxc6 {[%clk
01:33:17]} {[%emt 00:00:25]} Bxc6 {[%clk 01:29:57]} {[%emt 00:00:44]} 9. Be3
{[%clk 01:28:49]} {[%emt 00:04:58]} Be7 {[%clk 01:27:12]} {[%emt 00:03:15]} 10.
O-O {[%clk 01:11:49]} {[%emt 00:17:30]} O-O {[%clk 01:21:41]} {[%emt 00:06:01]}
11. f3 {[%clk 01:07:11]} {[%emt 00:05:07]} Ng5 {[%clk 01:17:22]} {[%emt
00:04:50]} 12. f4 {[%clk 01:05:37]} {[%emt 00:02:04]} Ne4 {[%clk 01:11:56]}
{[%emt 00:05:56]} 13. Nd2 {[%clk 00:59:46]} {[%emt 00:06:21]} Nxd2 {[%clk
01:05:28]} {[%emt 00:06:58]} 14. Qxd2 {[%clk 01:00:04]} {[%emt 00:00:13]} Re8
{[%clk 00:58:18]} {[%emt 00:07:40]} 15. Rf3 {[%clk 00:55:13]} {[%emt 00:05:20]}
Bc5 {[%clk 00:50:23]} {[%emt 00:08:26]} 16. Rg3 {[%clk 00:46:33]} {[%emt
00:09:09]} Bd7 {[%clk 00:44:58]} {[%emt 00:05:55]} 17. Nf3 {[%clk 00:34:03]}
{[%emt 00:12:59]} Bxe3+ {[%clk 00:42:24]} {[%emt 00:03:05]} 18. Qxe3 {[%clk
00:34:28]} {[%emt 00:00:05]} Bf5 {[%clk 00:36:42]} {[%emt 00:06:12]} 19. c3
{[%clk 00:29:39]} {[%emt 00:05:20]} Qe7 {[%clk 00:33:47]} {[%emt 00:03:25]} 20.
Qd4 {[%clk 00:28:19]} {[%emt 00:01:49]} Qe6 {[%clk 00:31:19]} {[%emt 00:02:58]}
21. Qd2 {[%clk 00:24:05]} {[%emt 00:04:44]} Qd7 {[%clk 00:24:49]} {[%emt
00:07:00]} 22. Rd1 {[%clk 00:21:31]} {[%emt 00:03:03]} Rad8 {[%clk 00:21:49]}
{[%emt 00:03:32]} 23. Qd4 {[%clk 00:18:55]} {[%emt 00:03:04]} a6 {[%clk
00:20:38]} {[%emt 00:01:42]} 24. Rxg7+ {[%clk 00:17:48]} {[%emt 00:01:36]} Kf8
{[%clk 00:17:27]} {[%emt 00:03:42]} 25. Ng5 {[%clk 00:11:29]} {[%emt 00:06:48]}
Bg6 {[%clk 00:14:06]} {[%emt 00:03:52]} 26. e6 {[%clk 00:09:38]} {[%emt
00:02:21]} Qd6 {[%clk 00:07:30]} {[%emt 00:07:06]} 27. Nxh7+ {[%clk 00:07:47]}
{[%emt 00:02:21]} Bxh7 {[%clk 00:05:19]} {[%emt 00:02:41]} 28. Rxf7+ {[%clk
00:08:09]} {[%emt 00:00:07]} Kg8 {[%clk 00:05:42]} {[%emt 00:00:08]} 29. Qg7#
{[%clk 00:08:02]} {[%emt 00:00:06]} 1-0

[Event "NJSK 2024 AmBm"]
[Site "Groningen, Netherlands"]
[Date "2024.04.30"]
[Round "4.6"]
[White "Ganeshram, Nirupa"]
[Black "Basa, Manasvita"]
[Result "0-1"]
[TimeControl "90min/40moves + 30min + 30sec/move"]
[WhiteElo "1696"]
[BlackElo "1829"]

1. e4 {[%clk 01:30:58]} e5 {[%clk 01:30:40]} {[%emt 00:00:21]} 2. Nf3 {[%clk
01:31:22]} {[%emt 00:00:06]} Nc6 {[%clk 01:31:04]} {[%emt 00:00:07]} 3. Bc4
{[%clk 01:31:43]} {[%emt 00:00:08]} Bc5 {[%clk 01:31:28]} {[%emt 00:00:06]} 4.
b4 {[%clk 01:31:59]} {[%emt 00:00:14]} Bxb4 {[%clk 01:31:41]} {[%emt 00:00:16]}
5. c3 {[%clk 01:32:20]} {[%emt 00:00:09]} Ba5 {[%clk 01:31:55]} {[%emt
00:00:17]} 6. d4 {[%clk 01:32:24]} {[%emt 00:00:26]} exd4 {[%clk 01:28:28]}
{[%emt 00:03:57]} 7. O-O {[%clk 01:32:10]} {[%emt 00:00:44]} Nf6 {[%clk
01:23:46]} {[%emt 00:05:13]} 8. Qb3 {[%clk 01:21:28]} {[%emt 00:11:12]} O-O
{[%clk 01:14:32]} {[%emt 00:09:43]} 9. Re1 {[%clk 01:13:08]} {[%emt 00:08:50]}
h6 {[%clk 01:07:57]} {[%emt 00:07:06]} 10. Ba3 {[%clk 01:06:18]} {[%emt
00:07:20]} d6 {[%clk 01:08:06]} {[%emt 00:00:22]} 11. e5 {[%clk 00:59:37]}
{[%emt 00:07:11]} Ng4 {[%clk 00:59:48]} {[%emt 00:08:47]} 12. e6 {[%clk
00:48:42]} {[%emt 00:11:25]} fxe6 {[%clk 00:50:24]} {[%emt 00:09:54]} 13. Bxe6+
{[%clk 00:48:31]} {[%emt 00:00:42]} Kh8 {[%clk 00:50:11]} {[%emt 00:00:43]} 14.
h3 {[%clk 00:39:37]} {[%emt 00:09:24]} Nge5 {[%clk 00:48:14]} {[%emt 00:02:27]}
15. Nxe5 {[%clk 00:30:16]} {[%emt 00:09:51]} Nxe5 {[%clk 00:48:35]} {[%emt
00:00:09]} 16. Bxc8 {[%clk 00:24:51]} {[%emt 00:05:55]} Qxc8 {[%clk 00:47:24]}
{[%emt 00:01:40]} 17. Rf1 {[%clk 00:20:57]} {[%emt 00:04:24]} d3 {[%clk
00:44:45]} {[%emt 00:03:09]} 18. Bb2 {[%clk 00:16:37]} {[%emt 00:04:49]} Bb6
{[%clk 00:44:17]} {[%emt 00:01:00]} 19. c4 {[%clk 00:13:36]} {[%emt 00:03:31]}
Qf5 {[%clk 00:44:25]} {[%emt 00:00:21]} 20. Nd2 {[%clk 00:10:40]} {[%emt
00:03:26]} Bxf2+ {[%clk 00:44:26]} {[%emt 00:00:29]} 21. Kh1 {[%clk 00:10:52]}
{[%emt 00:00:18]} Qf4 {[%clk 00:17:45]} {[%emt 00:27:11]} 22. Bxe5 {[%clk
00:09:21]} {[%emt 00:02:01]} dxe5 {[%clk 00:18:01]} {[%emt 00:00:14]} 23. Nf3
{[%clk 00:08:54]} {[%emt 00:00:57]} Qe3 {[%clk 00:18:14]} {[%emt 00:00:18]} 24.
Qxb7 {[%clk 00:07:51]} {[%emt 00:01:33]} Rae8 {[%clk 00:15:40]} {[%emt
00:03:04]} 25. Rad1 {[%clk 00:06:05]} {[%emt 00:02:16]} e4 {[%clk 00:15:00]}
{[%emt 00:01:10]} 26. Nh2 {[%clk 00:05:48]} {[%emt 00:00:46]} Bg3 {[%clk
00:13:50]} {[%emt 00:01:40]} 27. Qc6 {[%clk 00:05:01]} {[%emt 00:01:18]} Kh7
{[%clk 00:08:41]} {[%emt 00:05:39]} 28. Qd7 {[%clk 00:03:56]} {[%emt 00:01:38]}
Qg5 {[%clk 00:07:29]} {[%emt 00:01:40]} 29. Qd4 {[%clk 00:03:36]} {[%emt
00:00:49]} Qe5 {[%clk 00:06:45]} {[%emt 00:01:13]} 30. Rxf8 {[%clk 00:02:58]}
{[%emt 00:01:08]} Rxf8 {[%clk 00:06:38]} {[%emt 00:00:37]} 31. Qxe5 {[%clk
00:03:06]} {[%emt 00:00:22]} Bxe5 {[%clk 00:07:02]} {[%emt 00:00:06]} 32. Ng4
{[%clk 00:03:04]} {[%emt 00:00:32]} Bg3 {[%clk 00:07:21]} {[%emt 00:00:12]} 33.
Kg1 {[%clk 00:03:19]} {[%emt 00:00:14]} h5 {[%clk 00:07:36]} {[%emt 00:00:15]}
34. Nh2 {[%clk 00:03:23]} {[%emt 00:00:26]} Bxh2+ {[%clk 00:06:14]} {[%emt
00:01:52]} 35. Kxh2 {[%clk 00:03:49]} {[%emt 00:00:05]} Rf2 {[%clk 00:06:37]}
{[%emt 00:00:07]} 36. Kg3 {[%clk 00:03:36]} {[%emt 00:00:43]} Rxa2 {[%clk
00:07:00]} {[%emt 00:00:07]} 37. Kf4 {[%clk 00:03:51]} {[%emt 00:00:15]} Re2
{[%clk 00:07:12]} {[%emt 00:00:17]} 38. g4 {[%clk 00:02:59]} {[%emt 00:01:22]}
d2 {[%clk 00:07:27]} {[%emt 00:00:16]} 39. g5 {[%clk 00:03:03]} {[%emt
00:00:26]} e3 {[%clk 00:07:45]} {[%emt 00:00:12]} 40. Rb1 {[%clk 00:02:40]}
{[%emt 00:00:52]} Re1 {[%clk 00:08:05]} {[%emt 00:00:11]} 0-1

[Event "NJSK 2024 AmBm"]
[Site "Groningen, Netherlands"]
[Date "2024.04.30"]
[Round "4.7"]
[White "Liu, Chia-Yun"]
[Black "Luijkx, Dagmar"]
[Result "0-1"]
[TimeControl "90min/40moves + 30min + 30sec/move"]
[WhiteElo "1704"]
[BlackElo "1701"]

1. e4 {[%clk 01:30:57]} {[%emt 00:00:02]} e6 {[%clk 01:30:56]} {[%emt
00:00:04]} 2. d4 {[%clk 01:31:22]} {[%emt 00:00:04]} d5 {[%clk 01:31:24]}
{[%emt 00:00:03]} 3. exd5 {[%clk 01:31:44]} {[%emt 00:00:09]} exd5 {[%clk
01:31:42]} {[%emt 00:00:11]} 4. Bd3 {[%clk 01:31:51]} {[%emt 00:00:23]} Bd6
{[%clk 01:31:47]} {[%emt 00:00:24]} 5. Qf3 {[%clk 01:31:36]} {[%emt 00:00:46]}
Nc6 {[%clk 01:26:06]} {[%emt 00:06:12]} 6. Qxd5 {[%clk 01:21:30]} {[%emt
00:10:36]} Bb4+ {[%clk 01:26:00]} {[%emt 00:00:36]} 7. c3 {[%clk 01:21:09]}
{[%emt 00:00:51]} Qxd5 {[%clk 01:25:36]} {[%emt 00:00:53]} 8. Nf3 {[%clk
01:21:15]} {[%emt 00:00:25]} Bg4 {[%clk 01:24:26]} {[%emt 00:01:40]} 9. Nbd2
{[%clk 01:17:12]} {[%emt 00:04:32]} O-O-O {[%clk 01:23:19]} {[%emt 00:01:37]}
10. cxb4 {[%clk 01:17:03]} {[%emt 00:00:40]} Re8+ {[%clk 01:22:45]} {[%emt
00:01:03]} 11. Be4 {[%clk 01:16:07]} {[%emt 00:01:27]} Bxf3 {[%clk 01:21:14]}
{[%emt 00:02:01]} 12. gxf3 {[%clk 01:16:16]} {[%emt 00:00:20]} Nxd4 {[%clk
01:21:09]} {[%emt 00:00:35]} 13. Kd1 {[%clk 01:15:20]} {[%emt 00:01:27]} Qb5
{[%clk 01:19:52]} {[%emt 00:01:46]} 14. Re1 {[%clk 01:14:55]} {[%emt 00:00:56]}
Nf6 {[%clk 01:19:50]} {[%emt 00:00:32]} 15. b3 {[%clk 01:14:33]} {[%emt
00:00:53]} Nxe4 {[%clk 01:19:32]} {[%emt 00:00:47]} 16. Nxe4 {[%clk 01:14:25]}
{[%emt 00:00:38]} Qd3+ {[%clk 01:19:45]} {[%emt 00:00:17]} 17. Bd2 {[%clk
01:14:21]} {[%emt 00:00:33]} Qc2# {[%clk 01:20:07]} {[%emt 00:00:07]} 0-1

[Event "NJSK 2024 AmBm"]
[Site "Groningen, Netherlands"]
[Date "2024.04.30"]
[Round "4.8"]
[White "Woldhuis, Thera"]
[Black "Hagen, Carlijn"]
[Result "0-1"]
[TimeControl "90min/40moves + 30min + 30sec/move"]
[WhiteElo "1662"]
[BlackElo "1705"]

1. e4 {[%clk 01:30:59]} e5 {[%clk 01:30:53]} {[%emt 00:00:07]} 2. Nf3 {[%clk
01:31:25]} {[%emt 00:00:05]} Nc6 {[%clk 01:31:17]} {[%emt 00:00:06]} 3. Bc4
{[%clk 01:31:52]} {[%emt 00:00:03]} f5 {[%clk 01:31:37]} {[%emt 00:00:10]} 4.
d3 {[%clk 01:31:52]} {[%emt 00:00:30]} Bc5 {[%clk 01:31:33]} {[%emt 00:00:34]}
5. Ng5 {[%clk 01:31:56]} {[%emt 00:00:26]} f4 {[%clk 01:31:48]} {[%emt
00:00:15]} 6. Nf7 {[%clk 01:32:15]} {[%emt 00:00:11]} Qh4 {[%clk 01:32:08]}
{[%emt 00:00:09]} 7. g3 {[%clk 01:30:14]} {[%emt 00:02:31]} Qh3 {[%clk
01:32:30]} {[%emt 00:00:08]} 8. gxf4 {[%clk 01:28:53]} {[%emt 00:01:52]} d5
{[%clk 01:31:44]} {[%emt 00:01:16]} 9. Bxd5 {[%clk 01:28:49]} {[%emt 00:00:33]}
Nd4 {[%clk 01:30:28]} {[%emt 00:01:47]} 10. Be3 {[%clk 01:28:30]} {[%emt
00:00:49]} Bg4 {[%clk 01:30:39]} {[%emt 00:00:19]} 11. Bxd4 {[%clk 01:27:23]}
{[%emt 00:01:37]} Bxd1 {[%clk 01:30:52]} {[%emt 00:00:16]} 12. Bxc5 {[%clk
01:27:44]} {[%emt 00:00:10]} Qf3 {[%clk 01:31:04]} {[%emt 00:00:18]} 13. Kd2
{[%clk 01:26:50]} {[%emt 00:01:24]} Qe2+ {[%clk 01:31:13]} {[%emt 00:00:20]} 14.
Kc3 {[%clk 01:27:14]} {[%emt 00:00:06]} Qxc2+ {[%clk 01:31:38]} {[%emt
00:00:05]} 15. Kb4 {[%clk 01:27:40]} {[%emt 00:00:05]} a5+ {[%clk 01:31:39]}
{[%emt 00:00:29]} 16. Kb5 {[%clk 01:27:56]} {[%emt 00:00:14]} Qa4# {[%clk
01:32:01]} {[%emt 00:00:08]} 0-1

[Event "NJSK 2024 AmBm"]
[Site "Groningen, Netherlands"]
[Date "2024.04.30"]
[Round "4.9"]
[White "Yildirim, Azra"]
[Black "Rutten, Lenthe"]
[Result "1-0"]
[TimeControl "90min/40moves + 30min + 30sec/move"]
[WhiteElo "1597"]
[BlackElo "1526"]

1. e4 {[%clk 01:30:57]} {[%emt 00:00:02]} c5 {[%clk 01:30:59]} {[%emt
00:00:02]} 2. Nf3 {[%clk 01:31:20]} {[%emt 00:00:07]} d6 {[%clk 01:31:24]}
{[%emt 00:00:05]} 3. d4 {[%clk 01:31:39]} {[%emt 00:00:11]} cxd4 {[%clk
01:31:44]} {[%emt 00:00:10]} 4. Nxd4 {[%clk 01:31:53]} {[%emt 00:00:15]} Nf6
{[%clk 01:32:12]} {[%emt 00:00:03]} 5. Nc3 {[%clk 01:32:14]} {[%emt 00:00:09]}
g6 {[%clk 01:32:16]} {[%emt 00:00:26]} 6. Bc4 {[%clk 01:29:43]} {[%emt
00:03:02]} Bg7 {[%clk 01:31:39]} {[%emt 00:01:05]} 7. f3 {[%clk 01:28:32]}
{[%emt 00:01:42]} O-O {[%clk 01:30:47]} {[%emt 00:01:21]} 8. Bg5 {[%clk
01:23:38]} {[%emt 00:05:25]} Nc6 {[%clk 01:28:50]} {[%emt 00:02:27]} 9. Be3
{[%clk 01:13:41]} {[%emt 00:10:27]} e6 {[%clk 01:26:52]} {[%emt 00:02:27]} 10.
Qd2 {[%clk 01:01:20]} {[%emt 00:12:52]} d5 {[%clk 01:24:41]} {[%emt 00:02:40]}
11. exd5 {[%clk 00:59:47]} {[%emt 00:02:03]} exd5 {[%clk 01:24:12]} {[%emt
00:01:00]} 12. Bb5 {[%clk 00:59:16]} {[%emt 00:01:01]} Nxd4 {[%clk 01:23:14]}
{[%emt 00:01:26]} 13. Bxd4 {[%clk 00:56:54]} {[%emt 00:02:52]} Qe7+ {[%clk
01:17:12]} {[%emt 00:06:32]} 14. Ne2 {[%clk 00:53:25]} {[%emt 00:04:00]} a6
{[%clk 01:14:51]} {[%emt 00:02:51]} 15. Bd3 {[%clk 00:47:43]} {[%emt 00:06:12]}
Re8 {[%clk 01:13:07]} {[%emt 00:02:14]} 16. O-O-O {[%clk 00:45:50]} {[%emt
00:02:23]} Bf5 {[%clk 01:07:59]} {[%emt 00:05:38]} 17. Rhe1 {[%clk 00:43:42]}
{[%emt 00:02:38]} Bxd3 {[%clk 01:06:29]} {[%emt 00:02:00]} 18. Qxd3 {[%clk
00:44:03]} {[%emt 00:00:09]} Kh8 {[%clk 01:02:38]} {[%emt 00:04:20]} 19. Nf4
{[%clk 00:41:20]} {[%emt 00:03:13]} Qxe1 {[%clk 01:01:52]} {[%emt 00:01:16]} 20.
Rxe1 {[%clk 00:38:37]} {[%emt 00:03:14]} Rxe1+ {[%clk 01:02:17]} {[%emt
00:00:05]} 21. Kd2 {[%clk 00:38:54]} {[%emt 00:00:13]} Rae8 {[%clk 01:01:33]}
{[%emt 00:01:13]} 22. Qc3 {[%clk 00:34:50]} {[%emt 00:04:35]} Bh6 {[%clk
01:00:24]} {[%emt 00:01:39]} 23. Bxf6+ {[%clk 00:31:07]} {[%emt 00:04:14]} Kg8
{[%clk 01:00:31]} {[%emt 00:00:22]} 24. Qd4 {[%clk 00:24:54]} {[%emt 00:06:43]}
R8e2+ {[%clk 00:59:01]} {[%emt 00:02:00]} 25. Kc3 {[%clk 00:24:06]} {[%emt
00:01:17]} Re3+ {[%clk 00:58:04]} {[%emt 00:01:27]} 26. Nd3 {[%clk 00:22:55]}
{[%emt 00:01:42]} Bf8 {[%clk 00:56:06]} {[%emt 00:02:28]} 27. Qxd5 {[%clk
00:21:11]} {[%emt 00:02:14]} R1e2 {[%clk 00:54:27]} {[%emt 00:02:09]} 28. Bd4
{[%clk 00:19:44]} {[%emt 00:01:57]} Re7 {[%clk 00:53:58]} {[%emt 00:00:58]} 29.
Qd8 {[%clk 00:18:09]} {[%emt 00:02:04]} Rxg2 {[%clk 00:53:08]} {[%emt
00:01:21]} 30. Bc5 {[%clk 00:17:39]} {[%emt 00:01:00]} Rge2 {[%clk 00:51:29]}
{[%emt 00:02:09]} 31. Bxe7 {[%clk 00:17:53]} {[%emt 00:00:17]} Rxe7 {[%clk
00:51:44]} {[%emt 00:00:15]} 32. Kd2 {[%clk 00:17:21]} {[%emt 00:01:02]} f5
{[%clk 00:51:20]} {[%emt 00:00:53]} 33. Qd5+ {[%clk 00:15:49]} {[%emt
00:02:02]} Kg7 {[%clk 00:51:13]} {[%emt 00:00:36]} 34. Nc5 {[%clk 00:14:50]}
{[%emt 00:01:31]} b6 {[%clk 00:50:37]} {[%emt 00:01:06]} 35. Ne6+ {[%clk
00:14:45]} {[%emt 00:00:35]} Kf6 {[%clk 00:50:12]} {[%emt 00:00:53]} 36. Nxf8
{[%clk 00:14:36]} {[%emt 00:00:40]} 1-0

[Event "NJSK 2024 AmBm"]
[Site "Groningen, Netherlands"]
[Date "2024.05.01"]
[Round "5.1"]
[White "Westerhof, Fleur"]
[Black "Verheij, Dana"]
[Result "0-1"]
[TimeControl "90min/40moves + 30min + 30sec/move"]
[WhiteElo "1916"]
[BlackElo "1923"]

1. e4 {[%clk 01:30:54]} {[%emt 00:00:05]} c5 {[%clk 01:30:58]} {[%emt
00:00:03]} 2. Nf3 {[%clk 01:31:13]} {[%emt 00:00:10]} d6 {[%clk 01:31:25]}
{[%emt 00:00:04]} 3. d4 {[%clk 01:31:32]} {[%emt 00:00:11]} cxd4 {[%clk
01:31:51]} {[%emt 00:00:03]} 4. Nxd4 {[%clk 01:31:45]} {[%emt 00:00:17]} Nf6
{[%clk 01:32:13]} {[%emt 00:00:09]} 5. Nc3 {[%clk 01:32:04]} {[%emt 00:00:10]}
Nc6 {[%clk 01:32:36]} {[%emt 00:00:08]} 6. Bg5 {[%clk 01:31:32]} {[%emt
00:01:01]} e6 {[%clk 01:32:12]} {[%emt 00:00:55]} 7. Qd2 {[%clk 01:31:01]}
{[%emt 00:01:00]} a6 {[%clk 01:32:24]} {[%emt 00:00:19]} 8. O-O-O {[%clk
01:27:20]} {[%emt 00:04:11]} Bd7 {[%clk 01:31:26]} {[%emt 00:01:28]} 9. f4
{[%clk 01:19:30]} {[%emt 00:08:19]} h6 {[%clk 01:29:23]} {[%emt 00:02:34]} 10.
Bxf6 {[%clk 01:17:14]} {[%emt 00:02:45]} Qxf6 {[%clk 01:29:49]} {[%emt
00:00:05]} 11. Nf3 {[%clk 01:16:43]} {[%emt 00:01:01]} Qd8 {[%clk 01:27:06]}
{[%emt 00:03:12]} 12. e5 {[%clk 01:13:44]} {[%emt 00:03:29]} d5 {[%clk
01:25:14]} {[%emt 00:02:23]} 13. Nd4 {[%clk 01:08:44]} {[%emt 00:05:31]} Be7
{[%clk 01:23:16]} {[%emt 00:02:26]} 14. Kb1 {[%clk 01:07:43]} {[%emt 00:01:31]}
b5 {[%clk 01:06:33]} {[%emt 00:17:14]} 15. g4 {[%clk 01:04:52]} {[%emt
00:03:21]} b4 {[%clk 01:03:05]} {[%emt 00:03:58]} 16. Nce2 {[%clk 01:04:30]}
{[%emt 00:00:52]} Qc7 {[%clk 01:01:48]} {[%emt 00:01:47]} 17. Nxc6 {[%clk
01:00:03]} {[%emt 00:04:56]} Bxc6 {[%clk 01:01:26]} {[%emt 00:00:53]} 18. Nd4
{[%clk 01:00:06]} {[%emt 00:00:26]} Bd7 {[%clk 01:00:33]} {[%emt 00:01:24]} 19.
Bh3 {[%clk 00:52:19]} {[%emt 00:08:17]} a5 {[%clk 00:54:15]} {[%emt 00:06:48]}
20. Rhe1 {[%clk 00:47:47]} {[%emt 00:05:01]} a4 {[%clk 00:32:13]} {[%emt
00:22:33]} 21. f5 {[%clk 00:43:41]} {[%emt 00:04:36]} b3 {[%clk 00:28:25]}
{[%emt 00:04:19]} 22. fxe6 {[%clk 00:36:47]} {[%emt 00:07:23]} fxe6 {[%clk
00:19:30]} {[%emt 00:09:25]} 23. Rf1 {[%clk 00:32:09]} {[%emt 00:05:07]} bxa2+
{[%clk 00:16:05]} {[%emt 00:03:56]} 24. Kxa2 {[%clk 00:28:16]} {[%emt
00:04:22]} a3 {[%clk 00:12:44]} {[%emt 00:03:52]} 25. b3 {[%clk 00:28:09]}
{[%emt 00:00:37]} Bc5 {[%clk 00:09:40]} {[%emt 00:03:34]} 26. Qe2 {[%clk
00:21:23]} {[%emt 00:07:16]} Bxd4 {[%clk 00:09:38]} {[%emt 00:00:32]} 27. Rxd4
{[%clk 00:21:42]} {[%emt 00:00:10]} Qc3 {[%clk 00:09:59]} {[%emt 00:00:10]} 0-1

[Event "NJSK 2024 AmBm"]
[Site "Groningen, Netherlands"]
[Date "2024.05.01"]
[Round "5.2"]
[White "Gergin, Isafara"]
[Black "Feng, Elysia"]
[Result "1-0"]
[TimeControl "90min/40moves + 30min + 30sec/move"]
[WhiteElo "1888"]
[BlackElo "1862"]

1. e4 {[%clk 01:30:58]} {[%emt 00:00:02]} e5 {[%clk 01:30:55]} {[%emt
00:00:06]} 2. Nf3 {[%clk 01:31:23]} {[%emt 00:00:05]} Nc6 {[%clk 01:31:20]}
{[%emt 00:00:05]} 3. d4 {[%clk 01:31:49]} {[%emt 00:00:04]} exd4 {[%clk
01:31:46]} {[%emt 00:00:04]} 4. Nxd4 {[%clk 01:32:13]} {[%emt 00:00:06]} Bc5
{[%clk 01:32:10]} {[%emt 00:00:06]} 5. Be3 {[%clk 01:32:39]} {[%emt 00:00:04]}
Qf6 {[%clk 01:32:36]} {[%emt 00:00:04]} 6. c3 {[%clk 01:33:04]} {[%emt
00:00:06]} Nge7 {[%clk 01:33:01]} {[%emt 00:00:04]} 7. Bc4 {[%clk 01:33:24]}
{[%emt 00:00:11]} O-O {[%clk 01:33:23]} {[%emt 00:00:07]} 8. O-O {[%clk
01:33:46]} {[%emt 00:00:08]} b6 {[%clk 01:33:48]} {[%emt 00:00:05]} 9. Qd2
{[%clk 01:33:58]} {[%emt 00:00:18]} Qg6 {[%clk 01:34:12]} {[%emt 00:00:06]} 10.
Nxc6 {[%clk 01:34:12]} {[%emt 00:00:17]} Qxc6 {[%clk 01:34:34]} {[%emt
00:00:07]} 11. Bxc5 {[%clk 01:34:22]} {[%emt 00:00:20]} Qxc5 {[%clk 01:34:56]}
{[%emt 00:00:07]} 12. Na3 {[%clk 01:34:40]} {[%emt 00:00:13]} Ng6 {[%clk
01:34:48]} {[%emt 00:00:38]} 13. b4 {[%clk 01:33:41]} {[%emt 00:01:29]} Qe7
{[%clk 01:35:04]} {[%emt 00:00:14]} 14. Nb5 {[%clk 01:26:05]} {[%emt 00:08:06]}
Ba6 {[%clk 01:30:35]} {[%emt 00:04:59]} 15. Rfe1 {[%clk 01:14:39]} {[%emt
00:11:56]} Rad8 {[%clk 01:25:29]} {[%emt 00:05:36]} 16. a4 {[%clk 01:11:01]}
{[%emt 00:04:08]} Ne5 {[%clk 01:03:24]} {[%emt 00:22:34]} 17. Bf1 {[%clk
01:08:24]} {[%emt 00:03:06]} d6 {[%clk 00:58:34]} {[%emt 00:05:21]} 18. f4
{[%clk 00:44:48]} {[%emt 00:24:06]} Bxb5 {[%clk 00:54:15]} {[%emt 00:04:49]} 19.
axb5 {[%clk 00:43:45]} {[%emt 00:01:33]} Ng6 {[%clk 00:53:49]} {[%emt
00:00:56]} 20. Rxa7 {[%clk 00:42:57]} Ra8 {[%clk 00:48:46]} {[%emt 00:06:51]}
21. Ra6 {[%clk 00:41:48]} {[%emt 00:01:39]} Qh4 {[%clk 00:48:02]} {[%emt
00:01:14]} 22. g3 {[%clk 00:39:45]} {[%emt 00:02:33]} Qg4 {[%clk 00:47:12]}
{[%emt 00:01:19]} 23. Bg2 {[%clk 00:38:56]} {[%emt 00:01:19]} Rac8 {[%clk
00:43:40]} {[%emt 00:04:03]} 24. Qd3 {[%clk 00:35:18]} {[%emt 00:04:09]} Qd7
{[%clk 00:40:22]} {[%emt 00:03:48]} 25. Rd1 {[%clk 00:27:53]} {[%emt 00:07:54]}
f6 {[%clk 00:38:03]} {[%emt 00:02:49]} 26. c4 {[%clk 00:26:46]} {[%emt
00:01:37]} Rb8 {[%clk 00:32:35]} {[%emt 00:05:57]} 27. Ra7 {[%clk 00:22:37]}
{[%emt 00:04:40]} Rfd8 {[%clk 00:29:09]} {[%emt 00:03:56]} 28. Qd5+ {[%clk
00:21:43]} {[%emt 00:01:24]} Kf8 {[%clk 00:26:08]} {[%emt 00:03:31]} 29. Qc6
{[%clk 00:21:19]} {[%emt 00:00:54]} Qxc6 {[%clk 00:26:05]} {[%emt 00:00:33]} 30.
bxc6 {[%clk 00:21:43]} {[%emt 00:00:05]} b5 {[%clk 00:26:26]} {[%emt 00:00:09]}
31. Rxc7 {[%clk 00:20:09]} {[%emt 00:02:04]} bxc4 {[%clk 00:24:46]} {[%emt
00:02:10]} 32. Rb7 {[%clk 00:16:04]} {[%emt 00:04:35]} Rxb7 {[%clk 00:24:35]}
{[%emt 00:00:41]} 33. cxb7 {[%clk 00:16:24]} {[%emt 00:00:10]} Ke7 {[%clk
00:24:11]} {[%emt 00:00:54]} 34. Rc1 {[%clk 00:13:01]} {[%emt 00:03:53]} Rb8
{[%clk 00:22:48]} {[%emt 00:01:53]} 35. e5 {[%clk 00:12:25]} {[%emt 00:01:06]}
fxe5 {[%clk 00:21:55]} {[%emt 00:01:23]} 36. Rxc4 {[%clk 00:11:49]} {[%emt
00:01:06]} Kd8 {[%clk 00:21:36]} {[%emt 00:00:50]} 37. b5 {[%clk 00:09:18]}
{[%emt 00:03:01]} exf4 {[%clk 00:14:42]} {[%emt 00:07:24]} 38. gxf4 {[%clk
00:09:00]} {[%emt 00:00:47]} Nf8 {[%clk 00:13:52]} {[%emt 00:01:20]} 39. Ra4
{[%clk 00:02:28]} {[%emt 00:07:01]} Nd7 {[%clk 00:13:31]} {[%emt 00:00:52]} 40.
Ra6 {[%clk 00:01:12]} {[%emt 00:01:45]} Kc7 {[%clk 00:12:51]} {[%emt 00:01:11]}
41. Ra8 {[%clk 00:24:44]} {[%emt 00:06:57]} Nb6 {[%clk 00:40:37]} {[%emt
00:02:44]} 42. Bc6 {[%clk 00:21:47]} {[%emt 00:03:27]} g6 {[%clk 00:32:51]}
{[%emt 00:08:17]} 43. Kf2 {[%clk 00:21:51]} {[%emt 00:00:26]} Rxb7 {[%clk
00:27:59]} {[%emt 00:05:22]} 44. Bxb7 {[%clk 00:21:44]} {[%emt 00:00:37]} Kxb7
{[%clk 00:28:23]} {[%emt 00:00:05]} 45. Rh8 {[%clk 00:21:43]} {[%emt 00:00:32]}
Nd5 {[%clk 00:28:43]} {[%emt 00:00:09]} 46. Rxh7+ {[%clk 00:21:34]} {[%emt
00:00:39]} Kb6 {[%clk 00:29:10]} {[%emt 00:00:04]} 47. Kf3 {[%clk 00:21:10]}
{[%emt 00:00:54]} Kxb5 {[%clk 00:29:32]} {[%emt 00:00:07]} 48. Rg7 {[%clk
00:20:55]} {[%emt 00:00:45]} 1-0